fUSD/lending_fUSD_20260513
["ID","MTS","AMOUNT","RATE_DAILY","PERIOD"]
[422174461,1778647838000,-151.0,0.0001725,2]
[422174455,1778647838000,-151.0,0.0001725,2]
[422174462,1778647838000,-151.0,0.0001725,2]
[422174460,1778647838000,-151.0,0.0001725,2]
[422174465,1778647838000,-151.0,0.0001725,2]
[422174477,1778647838000,-17855.0,0.00018633,2]
[422174463,1778647838000,-151.0,0.0001725,2]
[422174474,1778647838000,-312.96,0.0001829,2]
[422174472,1778647838000,-587.0,0.00017732,2]
[422174470,1778647838000,-733.52468526,0.00017632,2]
[422174471,1778647838000,-9999.99,0.00017728,2]
[422174469,1778647838000,-151.0,0.0001725,2]
[422174476,1778647838000,-736.0,0.00018438,2]
[422174468,1778647838000,-151.0,0.0001725,2]
[422174466,1778647838000,-151.0,0.0001725,2]
[422174467,1778647838000,-151.0,0.0001725,2]
[422174464,1778647838000,-151.0,0.0001725,2]
[422174473,1778647838000,-2351.0,0.00017906,2]
[422174554,1778647839000,-4074.12,0.00024174,2]
[422174553,1778647839000,-12464.0,0.00024164,2]
[422174550,1778647839000,-1233.0,0.00024,2]
[422174552,1778647839000,-2000.0,0.0002415,2]
[422174548,1778647839000,-733.52468526,0.00023496,2]
[422174551,1778647839000,-191.0,0.00024,2]
[422174546,1778647839000,-191.0,0.00023,2]
[422174544,1778647839000,-228.0,0.00023,2]
[422174545,1778647839000,-1233.0,0.00023,2]
[422174543,1778647839000,-219.07,0.00022729,2]
[422174537,1778647839000,-219.07,0.00022213,2]
[422174555,1778647839000,-1105.01,0.00024174,2]
[422174547,1778647839000,-1613.0,0.0002326,2]
[422174549,1778647839000,-228.0,0.00024,2]
[422174569,1778647839000,-1353.0,0.00025075,2]
[422174558,1778647839000,-508.0,0.00024397,2]
[422174557,1778647839000,-33345.8532226,0.0002419,2]
[422174560,1778647839000,-187.15,0.00024658,2]
[422174559,1778647839000,-173.1,0.0002463,2]
[422174567,1778647839000,-194.21923189,0.00025,2]
[422174568,1778647839000,-3541.0,0.00025075,2]
[422174561,1778647839000,-1000.0,0.00024658,2]
[422174562,1778647839000,-188.68,0.00024658,2]
[422174565,1778647839000,-241.0,0.00025,2]
[422174564,1778647839000,-178.08,0.00024678,2]
[422174563,1778647839000,-186.92,0.00024658,2]
[422174566,1778647839000,-1248.14026373,0.00025,2]
[422174539,1778647839000,-176.0434088,0.00022407,2]
[422174556,1778647839000,-467754.5847095,0.0002419,2]
[422174538,1778647839000,-176.04340881,0.00022407,2]
[422174509,1778647839000,-4903.22,0.00020548,2]
[422174541,1778647839000,-183.27,0.0002247,2]
[422174571,1778647839000,-417.0,0.00025075,2]
[422174510,1778647839000,-4041.26,0.00020548,2]
[422174511,1778647839000,-4041.26,0.00020548,2]
[422174517,1778647839000,-228.0,0.00021,2]
[422174514,1778647839000,-219.07,0.00020663,2]
[422174512,1778647839000,-4041.26,0.00020548,2]
[422174513,1778647839000,-733.52468526,0.00020564,2]
[422174515,1778647839000,-183.27,0.00020878,2]
[422174516,1778647839000,-167.59,0.00020923,2]
[422174520,1778647839000,-219.07,0.0002118,2]
[422174521,1778647839000,-1152.0,0.00021249,2]
[422174518,1778647839000,-1233.0,0.00021,2]
[422174519,1778647839000,-191.0,0.00021,2]
[422174523,1778647839000,-169.64746065,0.000215,2]
[422174522,1778647839000,-405.0,0.00021339,2]
[422174526,1778647839000,-219.07,0.00021696,2]
[422174524,1778647839000,-159.3879338,0.00021501,24]
[422174529,1778647839000,-402.0,0.00021937,2]
[422174527,1778647839000,-2000.0,0.00021735,2]
[422174528,1778647839000,-5000.0,0.00021918,2]
[422174525,1778647839000,-1339.0,0.00021666,2]
[422174530,1778647839000,-500.0,0.00021949,2]
[422174533,1778647839000,-399.0,0.0002195,2]
[422174532,1778647839000,-247.35699135,0.0002195,2]
[422174531,1778647839000,-253.21691773,0.0002195,2]
[422174534,1778647839000,-228.0,0.00022,2]
[422174536,1778647839000,-191.0,0.00022,2]
[422174535,1778647839000,-1233.0,0.00022,2]
[422174540,1778647839000,-176.0434088,0.00022407,2]
[422174542,1778647839000,-163.42,0.00022582,2]
[422174572,1778647839000,-300.0,0.000251,7]
[422174611,1778647839000,-438.15,0.00026173,7]
[422174573,1778647839000,-437.4,0.00025165,2]
[422174606,1778647839000,-439.29,0.00026144,7]
[422174608,1778647839000,-325.41,0.00026144,7]
[422174635,1778647839000,-325.41,0.00026316,7]
[422174610,1778647839000,-325.41,0.00026172,7]
[422174612,1778647839000,-439.29,0.00026173,7]
[422174609,1778647839000,-326.62,0.00026172,7]
[422174614,1778647839000,-326.62,0.00026201,2]
[422174616,1778647839000,-438.15,0.00026202,2]
[422174613,1778647839000,-338.33,0.00026173,7]
[422174615,1778647839000,-325.41,0.00026201,2]
[422174618,1778647839000,-338.33,0.00026202,2]
[422174617,1778647839000,-439.29,0.00026202,2]
[422174621,1778647839000,-439.29,0.0002623,7]
[422174607,1778647839000,-338.33,0.00026144,7]
[422174619,1778647839000,-438.15,0.0002623,7]
[422174624,1778647839000,-438.15,0.00026259,2]
[422174623,1778647839000,-325.41,0.0002623,7]
[422174625,1778647839000,-326.62,0.00026259,2]
[422174622,1778647839000,-338.33,0.0002623,7]
[422174626,1778647839000,-439.29,0.00026259,2]
[422174628,1778647839000,-325.41,0.00026259,2]
[422174629,1778647839000,-326.62,0.00026287,2]
[422174630,1778647839000,-325.41,0.00026287,2]
[422174631,1778647839000,-438.15,0.00026288,2]
[422174627,1778647839000,-338.33,0.00026259,2]
[422174633,1778647839000,-338.33,0.00026288,2]
[422174634,1778647839000,-326.62,0.00026316,7]
[422174570,1778647839000,-165.686,0.00025075,2]
[422174620,1778647839000,-326.62,0.0002623,7]
[422174601,1778647839000,-438.15,0.00026116,2]
[422174632,1778647839000,-439.29,0.00026288,2]
[422174604,1778647839000,-438.15,0.00026144,7]
[422174605,1778647839000,-326.62,0.00026144,7]
[422174574,1778647839000,-450.0,0.00025165,2]
[422174579,1778647839000,-66746.21,0.00025808,7]
[422174582,1778647839000,-188.68,0.00026027,7]
[422174575,1778647839000,-2258.0,0.00025462,2]
[422174577,1778647839000,-4074.12,0.00025786,2]
[422174581,1778647839000,-186.91,0.00025927,2]
[422174576,1778647839000,-508.0,0.00025606,3]
[422174580,1778647839000,-188.68,0.00025918,2]
[422174586,1778647839000,-438.15,0.0002603,2]
[422174587,1778647839000,-439.29,0.0002603,2]
[422174583,1778647839000,-186.92,0.00026027,7]
[422174584,1778647839000,-326.62,0.00026029,2]
[422174585,1778647839000,-325.41,0.00026029,2]
[422174578,1778647839000,-1105.01,0.00025786,2]
[422174588,1778647839000,-338.33,0.0002603,2]
[422174592,1778647839000,-439.29,0.00026058,7]
[422174603,1778647839000,-338.33,0.00026116,2]
[422174597,1778647839000,-439.29,0.00026087,2]
[422174598,1778647839000,-338.33,0.00026087,2]
[422174595,1778647839000,-325.41,0.00026086,2]
[422174599,1778647839000,-326.62,0.00026115,2]
[422174600,1778647839000,-325.41,0.00026115,2]
[422174593,1778647839000,-338.33,0.00026058,7]
[422174589,1778647839000,-326.62,0.00026057,7]
[422174596,1778647839000,-438.15,0.00026087,2]
[422174594,1778647839000,-326.62,0.00026086,2]
[422174602,1778647839000,-439.29,0.00026116,2]
[422174590,1778647839000,-325.41,0.00026057,7]
[422174591,1778647839000,-438.15,0.00026058,7]
[422174675,1778647840000,-439.29,0.00026489,7]
[422174667,1778647840000,-337.83,0.0002646,2]
[422174668,1778647840000,-326.62,0.0002646,2]
[422174663,1778647840000,-439.29,0.00026431,2]
[422174671,1778647840000,-325.41,0.0002646,2]
[422174670,1778647840000,-338.33,0.0002646,2]
[422174672,1778647840000,-438.15,0.00026489,7]
[422174673,1778647840000,-337.83,0.00026489,7]
[422174674,1778647840000,-326.62,0.00026489,7]
[422174676,1778647840000,-338.33,0.00026489,7]
[422174664,1778647840000,-338.33,0.00026431,2]
[422174669,1778647840000,-439.29,0.0002646,2]
[422174682,1778647840000,-338.33,0.00026517,7]
[422174678,1778647840000,-438.15,0.00026517,7]
[422174679,1778647840000,-337.83,0.00026517,7]
[422174680,1778647840000,-326.62,0.00026517,7]
[422174681,1778647840000,-439.29,0.00026517,7]
[422174683,1778647840000,-325.41,0.00026517,7]
[422174685,1778647840000,-438.15,0.00026546,2]
[422174684,1778647840000,-183.41,0.00026546,2]
[422174687,1778647840000,-326.62,0.00026546,2]
[422174689,1778647840000,-338.33,0.00026546,2]
[422174666,1778647840000,-438.15,0.0002646,2]
[422174686,1778647840000,-337.83,0.00026546,2]
[422174677,1778647840000,-325.41,0.00026489,7]
[422174665,1778647840000,-325.41,0.00026431,2]
[422174645,1778647840000,-325.41,0.00026345,7]
[422174662,1778647840000,-326.62,0.00026431,2]
[422174688,1778647840000,-439.29,0.00026546,2]
[422174638,1778647840000,-439.29,0.00026317,7]
[422174636,1778647840000,-438.15,0.00026317,7]
[422174637,1778647840000,-337.83,0.00026317,7]
[422174639,1778647840000,-338.33,0.00026317,7]
[422174641,1778647840000,-337.83,0.00026345,7]
[422174642,1778647840000,-326.62,0.00026345,7]
[422174640,1778647840000,-438.15,0.00026345,7]
[422174643,1778647840000,-439.29,0.00026345,7]
[422174646,1778647840000,-438.15,0.00026374,2]
[422174644,1778647840000,-338.33,0.00026345,7]
[422174647,1778647840000,-337.83,0.00026374,2]
[422174650,1778647840000,-338.33,0.00026374,2]
[422174649,1778647840000,-439.29,0.00026374,2]
[422174648,1778647840000,-326.62,0.00026374,2]
[422174651,1778647840000,-325.41,0.00026374,2]
[422174652,1778647840000,-326.62,0.00026402,7]
[422174653,1778647840000,-325.41,0.00026402,7]
[422174654,1778647840000,-438.15,0.00026403,7]
[422174655,1778647840000,-337.83,0.00026403,7]
[422174658,1778647840000,-733.52468526,0.00026428,2]
[422174657,1778647840000,-338.33,0.00026403,7]
[422174656,1778647840000,-439.29,0.00026403,7]
[422174661,1778647840000,-337.83,0.00026431,2]
[422174660,1778647840000,-438.15,0.00026431,2]
[422174659,1778647840000,-184.13,0.0002643,2]
[422174691,1778647840000,-2000.0,0.00026565,2]
[422174694,1778647840000,-326.64,0.00026575,7]
[422174739,1778647840000,-1279.01,0.000297,14]
[422174728,1778647840000,-1353.0,0.00028075,2]
[422174730,1778647840000,-150.0,0.00028192,2]
[422174729,1778647840000,-417.0,0.00028075,2]
[422174735,1778647840000,-163.42,0.00029034,120]
[422174732,1778647840000,-811.47,0.00028623,7]
[422174734,1778647840000,-2000.0,0.00028981,120]
[422174733,1778647840000,-500.0,0.00028877,2]
[422174737,1778647840000,-733.52468526,0.00029359,2]
[422174736,1778647840000,-508.0,0.00029232,7]
[422174738,1778647840000,-150.0,0.00029601,2]
[422174740,1778647840000,-4999.0,0.0003,2]
[422174727,1778647840000,-3541.0,0.00028075,2]
[422174742,1778647840000,-811.47,0.00030031,7]
[422174745,1778647840000,-858.14917869,0.00030137,2]
[422174744,1778647840000,-200.0,0.00030137,2]
[422174746,1778647840000,-508.0,0.00030441,8]
[422174748,1778647840000,-191.0,0.00030646,30]
[422174749,1778647840000,-151.0,0.00030646,30]
[422174747,1778647840000,-154.0,0.00030646,30]
[422174750,1778647840000,-152.0,0.00030646,30]
[422174751,1778647840000,-156.0,0.00030702,30]
[422174753,1778647840000,-228.0,0.00030702,30]
[422174690,1778647840000,-325.41,0.00026546,2]
[422174752,1778647840000,-156.0,0.00030702,30]
[422174741,1778647840000,-375.42,0.0003,7]
[422174721,1778647840000,-500.0,0.000278,7]
[422174731,1778647840000,-169.64746065,0.000283,2]
[422174719,1778647840000,-178.08,0.00027763,2]
[422174692,1778647840000,-438.23,0.00026575,7]
[422174693,1778647840000,-337.93,0.00026575,7]
[422174695,1778647840000,-439.29,0.00026575,7]
[422174696,1778647840000,-338.45,0.00026575,7]
[422174697,1778647840000,-188.68,0.00026575,7]
[422174699,1778647840000,-186.92,0.00026575,7]
[422174698,1778647840000,-325.48,0.00026575,7]
[422174700,1778647840000,-152.0,0.00026607,7]
[422174725,1778647840000,-185.49,0.00028,2]
[422174701,1778647840000,-508.0,0.00026815,4]
[422174705,1778647840000,-186.92,0.00027397,30]
[422174703,1778647840000,-811.47,0.000271,7]
[422174706,1778647840000,-1500.0,0.00027397,2]
[422174702,1778647840000,-150.0,0.00026849,2]
[422174707,1778647840000,-300.0,0.00027397,2]
[422174708,1778647840000,-5525.15,0.00027397,10]
[422174709,1778647840000,-4604.29,0.00027397,10]
[422174711,1778647840000,-171.76,0.000274,7]
[422174713,1778647840000,-1279.01,0.000274,14]
[422174715,1778647840000,-361.41,0.00027646,2]
[422174726,1778647840000,-508.0,0.00028024,5]
[422174724,1778647840000,-185.49,0.00028,2]
[422174716,1778647840000,-165.77,0.00027695,2]
[422174723,1778647840000,-170.7605984,0.00027946,2]
[422174704,1778647840000,-188.7,0.00027397,30]
[422174722,1778647840000,-248.0,0.00027873,2]
[422174788,1778647841000,-156.0,0.00032702,30]
[422174792,1778647841000,-811.47,0.00032846,7]
[422174797,1778647841000,-774.0,0.00033001,30]
[422174790,1778647841000,-1233.0,0.00032702,30]
[422174789,1778647841000,-228.0,0.00032702,30]
[422174791,1778647841000,-160.0,0.00032702,30]
[422174786,1778647841000,-1279.01,0.000327,14]
[422174795,1778647841000,-699.0,0.00033001,30]
[422174785,1778647841000,-191.0,0.00032646,30]
[422174787,1778647841000,-156.0,0.00032702,30]
[422174796,1778647841000,-292.0,0.00033001,30]
[422174794,1778647841000,-3088.0,0.00032877,2]
[422174793,1778647841000,-508.0,0.00032859,10]
[422174810,1778647841000,-811.47,0.00034254,14]
[422174802,1778647841000,-165.0,0.00033702,30]
[422174798,1778647841000,-350.0,0.00033014,5]
[422174801,1778647841000,-191.0,0.00033646,30]
[422174800,1778647841000,-375.42,0.000336,7]
[422174805,1778647841000,-178.08,0.00033933,2]
[422174803,1778647841000,-228.0,0.00033702,30]
[422174804,1778647841000,-1233.0,0.00033702,30]
[422174807,1778647841000,-508.0,0.00034067,12]
[422174806,1778647841000,-1090.051,0.00033951,37]
[422174809,1778647841000,-417.0,0.00034075,2]
[422174808,1778647841000,-3541.0,0.00034075,2]
[422174811,1778647841000,-150.0,0.00034267,2]
[422174784,1778647841000,-150.0,0.00032636,2]
[422174799,1778647841000,-152.0,0.00033461,3]
[422174783,1778647841000,-1751.0,0.0003238,5]
[422174755,1778647841000,-156.0,0.00030702,30]
[422174777,1778647841000,-156.0,0.00031702,30]
[422174754,1778647841000,-1233.0,0.00030702,30]
[422174756,1778647841000,-1232.30386164,0.000308,2]
[422174757,1778647841000,-1232.30386162,0.000308,2]
[422174762,1778647841000,-417.0,0.00031075,2]
[422174760,1778647841000,-3541.0,0.00031075,2]
[422174764,1778647841000,-200.0,0.00031096,2]
[422174766,1778647841000,-811.47,0.00031439,7]
[422174763,1778647841000,-150.0,0.00031081,2]
[422174759,1778647841000,-178.08,0.00030848,2]
[422174765,1778647841000,-282.19,0.00031096,2]
[422174758,1778647841000,-1232.30386162,0.000308,2]
[422174761,1778647841000,-1353.0,0.00031075,2]
[422174780,1778647841000,-156.0,0.00031702,30]
[422174767,1778647841000,-1000.0,0.000315,7]
[422174772,1778647841000,-151.0,0.00031646,30]
[422174770,1778647841000,-154.0,0.00031646,30]
[422174771,1778647841000,-191.0,0.00031646,30]
[422174769,1778647841000,-288.64,0.00031553,2]
[422174773,1778647841000,-152.0,0.00031646,30]
[422174775,1778647841000,-375.42,0.000317,7]
[422174776,1778647841000,-156.0,0.00031702,30]
[422174774,1778647841000,-508.0,0.0003165,9]
[422174782,1778647841000,-733.52468526,0.00032291,2]
[422174778,1778647841000,-228.0,0.00031702,30]
[422174781,1778647841000,-200.0,0.00032055,2]
[422174779,1778647841000,-1233.0,0.00031702,30]
[422174768,1778647841000,-288.64,0.0003154,14]
[422174812,1778647841000,-191.0,0.00034646,30]
[422174867,1778647841000,-228.0,0.00036702,30]
[422174813,1778647841000,-228.0,0.00034702,30]
[422174847,1778647841000,-1000.0,0.00035616,10]
[422174843,1778647841000,-1000.0,0.00035616,10]
[422174848,1778647841000,-1000.0,0.00035616,10]
[422174851,1778647841000,-220.88818382,0.00035616,2]
[422174849,1778647841000,-1000.0,0.00035616,10]
[422174850,1778647841000,-1000.0,0.00035616,10]
[422174853,1778647841000,-811.47,0.00035661,14]
[422174857,1778647841000,-184.09,0.00035924,30]
[422174859,1778647841000,-305.75,0.00036039,10]
[422174852,1778647841000,-191.0,0.00035646,30]
[422174860,1778647841000,-1151.48896166,0.00036048,2]
[422174855,1778647841000,-228.0,0.00035702,30]
[422174845,1778647841000,-1000.0,0.00035616,10]
[422174858,1778647841000,-150.0,0.00035981,2]
[422174864,1778647841000,-191.0,0.00036646,30]
[422174861,1778647841000,-311.0,0.00036225,10]
[422174863,1778647841000,-508.0,0.00036485,14]
[422174862,1778647841000,-467.0,0.00036225,10]
[422174870,1778647841000,-211.13,0.00036961,10]
[422174868,1778647841000,-1233.0,0.00036702,30]
[422174866,1778647841000,-179.53,0.00036663,5]
[422174865,1778647841000,-179.53,0.00036663,5]
[422174869,1778647841000,-173.1,0.00036946,2]
[422174872,1778647841000,-299.30487589,0.00036986,40]
[422174871,1778647841000,-1000.0,0.00036986,120]
[422174814,1778647841000,-1233.0,0.00034702,30]
[422174856,1778647841000,-1233.0,0.00035702,30]
[422174844,1778647841000,-1000.0,0.00035616,10]
[422174854,1778647841000,-375.42,0.000357,7]
[422174840,1778647841000,-1000.0,0.00035616,10]
[422174815,1778647841000,-1500.0,0.00034795,2]
[422174841,1778647841000,-1000.0,0.00035616,10]
[422174817,1778647841000,-500.0,0.00035098,3]
[422174820,1778647841000,-1279.01,0.000351,14]
[422174816,1778647841000,-500.0,0.00035098,3]
[422174819,1778647841000,-169.64746065,0.000351,2]
[422174818,1778647841000,-200.0,0.00035098,3]
[422174822,1778647841000,-49683.0,0.00035151,60]
[422174823,1778647841000,-500.0,0.00035193,3]
[422174824,1778647841000,-372.315504,0.00035193,3]
[422174826,1778647841000,-489.26201601,0.00035193,3]
[422174825,1778647841000,-500.0,0.00035193,3]
[422174827,1778647841000,-500.0,0.00035193,3]
[422174831,1778647841000,-1500.0,0.000352,7]
[422174821,1778647841000,-206.4843588,0.00035112,120]
[422174828,1778647841000,-441.54366933,0.00035193,3]
[422174846,1778647841000,-1000.0,0.00035616,10]
[422174839,1778647841000,-1000.0,0.00035616,10]
[422174837,1778647841000,-1000.0,0.00035616,10]
[422174838,1778647841000,-1000.0,0.00035616,10]
[422174836,1778647841000,-1000.0,0.00035616,10]
[422174835,1778647841000,-1000.0,0.00035616,10]
[422174842,1778647841000,-1000.0,0.00035616,10]
[422174834,1778647841000,-1000.0,0.00035616,120]
[422174833,1778647841000,-508.0,0.00035276,13]
[422174830,1778647841000,-441.54366934,0.00035193,3]
[422174829,1778647841000,-500.0,0.00035193,3]
[422174832,1778647841000,-733.52468526,0.00035223,2]
[422174921,1778647842000,-309.50271907,0.00037167,2]
[422174915,1778647842000,-300.0,0.00037167,2]
[422174913,1778647842000,-348.57884028,0.00037167,2]
[422174916,1778647842000,-853.95058635,0.00037167,2]
[422174914,1778647842000,-300.0,0.00037167,2]
[422174905,1778647842000,-300.6276304,0.00037167,2]
[422174908,1778647842000,-300.0,0.00037167,2]
[422174909,1778647842000,-527.6022146,0.00037167,2]
[422174907,1778647842000,-300.0,0.00037167,2]
[422174910,1778647842000,-725.87349266,0.00037167,2]
[422174906,1778647842000,-604.28857032,0.00037167,2]
[422174912,1778647842000,-301.48455398,0.00037167,2]
[422174911,1778647842000,-301.16299679,0.00037167,2]
[422174917,1778647842000,-300.56091381,0.00037167,2]
[422174932,1778647842000,-463.72172131,0.00037167,2]
[422174920,1778647842000,-1146.85439814,0.00037167,2]
[422174919,1778647842000,-300.51493316,0.00037167,2]
[422174918,1778647842000,-300.4348941,0.00037167,2]
[422174924,1778647842000,-300.0,0.00037167,2]
[422174923,1778647842000,-864.21260631,0.00037167,2]
[422174925,1778647842000,-1755.48763153,0.00037167,2]
[422174926,1778647842000,-300.0,0.00037167,2]
[422174927,1778647842000,-300.51069385,0.00037167,2]
[422174928,1778647842000,-300.57597218,0.00037167,2]
[422174933,1778647842000,-300.0,0.00037167,2]
[422174929,1778647842000,-310.8122113,0.00037167,2]
[422174931,1778647842000,-300.0,0.00037167,2]
[422174904,1778647842000,-300.0,0.00037167,2]
[422174922,1778647842000,-300.55580641,0.00037167,2]
[422174901,1778647842000,-300.0,0.00037167,2]
[422174874,1778647842000,-811.47,0.00037069,30]
[422174902,1778647842000,-300.67819865,0.00037167,2]
[422174934,1778647842000,-451.7860235,0.00037167,2]
[422174873,1778647842000,-178.08,0.00037017,2]
[422174876,1778647842000,-417.0,0.00037075,2]
[422174875,1778647842000,-3541.0,0.00037075,2]
[422174877,1778647842000,-150.0,0.00037159,7]
[422174883,1778647842000,-300.54001455,0.00037167,2]
[422174884,1778647842000,-300.0,0.00037167,2]
[422174880,1778647842000,-150.0,0.00037159,7]
[422174878,1778647842000,-171.07198398,0.00037159,7]
[422174882,1778647842000,-309.50271907,0.00037167,2]
[422174885,1778647842000,-311.8445281,0.00037167,2]
[422174879,1778647842000,-150.0,0.00037159,7]
[422174881,1778647842000,-1146.85439814,0.00037167,2]
[422174903,1778647842000,-492.55383622,0.00037167,2]
[422174886,1778647842000,-300.0,0.00037167,2]
[422174889,1778647842000,-579.36493634,0.00037167,2]
[422174887,1778647842000,-465.60508682,0.00037167,2]
[422174893,1778647842000,-300.98575595,0.00037167,2]
[422174892,1778647842000,-309.75646752,0.00037167,2]
[422174890,1778647842000,-300.0,0.00037167,2]
[422174891,1778647842000,-486.27731365,0.00037167,2]
[422174896,1778647842000,-300.0,0.00037167,2]
[422174897,1778647842000,-300.0,0.00037167,2]
[422174899,1778647842000,-300.0,0.00037167,2]
[422174894,1778647842000,-300.0,0.00037167,2]
[422174895,1778647842000,-378.69464343,0.00037167,2]
[422174898,1778647842000,-300.0,0.00037167,2]
[422174900,1778647842000,-300.0,0.00037167,2]
[422174888,1778647842000,-300.0,0.00037167,2]
[422174937,1778647842000,-483.96406548,0.00037167,2]
[422174967,1778647842000,-150.0,0.00037802,2]
[422174930,1778647842000,-300.0,0.00037167,2]
[422174974,1778647842000,-150.0,0.00038,120]
[422174970,1778647842000,-266.0,0.00037802,2]
[422174976,1778647842000,-216.0,0.00038,120]
[422174971,1778647842000,-150.0,0.00037985,7]
[422174972,1778647842000,-150.0,0.00037985,7]
[422174975,1778647842000,-218.0,0.00038,120]
[422174977,1778647842000,-300.0,0.00038034,2]
[422174980,1778647842000,-300.0,0.00038034,2]
[422174979,1778647842000,-300.0,0.00038034,2]
[422174978,1778647842000,-300.0,0.00038034,2]
[422174981,1778647842000,-300.0,0.00038034,2]
[422174982,1778647842000,-300.0,0.00038034,2]
[422174983,1778647842000,-300.0,0.00038034,2]
[422174973,1778647842000,-495.513,0.00038,120]
[422174989,1778647842000,-200.0,0.00038157,6]
[422174984,1778647842000,-300.0,0.00038034,2]
[422174986,1778647842000,-171.0,0.00038034,2]
[422174985,1778647842000,-300.0,0.00038034,2]
[422174987,1778647842000,-570.79180423,0.000381,33]
[422174990,1778647842000,-200.0,0.0003816,6]
[422174991,1778647842000,-200.0,0.00038207,6]
[422174992,1778647842000,-200.0,0.00038213,6]
[422174993,1778647842000,-510.0,0.00038247,2]
[422174994,1778647842000,-175.88953785,0.00038329,120]
[422174995,1778647842000,-500.0,0.00038356,2]
[422174997,1778647842000,-500.0,0.00038356,2]
[422174996,1778647842000,-500.0,0.00038356,2]
[422174938,1778647842000,-309.75646752,0.00037167,2]
[422174988,1778647842000,-733.52468526,0.00038155,2]
[422174968,1778647842000,-150.0,0.00037802,2]
[422174998,1778647842000,-500.0,0.00038356,2]
[422174965,1778647842000,-150.0,0.0003778,2]
[422174969,1778647842000,-150.0,0.00037802,2]
[422174935,1778647842000,-300.0,0.00037167,2]
[422174939,1778647842000,-300.0,0.00037167,2]
[422174942,1778647842000,-300.0,0.00037167,2]
[422174941,1778647842000,-300.50028789,0.00037167,2]
[422174940,1778647842000,-378.69464343,0.00037167,2]
[422174946,1778647842000,-197.49,0.00037404,120]
[422174947,1778647842000,-152.0,0.00037473,4]
[422174943,1778647842000,-300.0,0.00037167,2]
[422174948,1778647842000,-7649.32,0.000375,120]
[422174945,1778647842000,-49683.0,0.00037301,60]
[422174950,1778647842000,-150.0,0.00037561,2]
[422174949,1778647842000,-150.0,0.00037561,2]
[422174951,1778647842000,-150.0,0.00037561,2]
[422174936,1778647842000,-300.0,0.00037167,2]
[422174952,1778647842000,-150.0,0.00037561,2]
[422174944,1778647842000,-220.16,0.00037301,2]
[422174966,1778647842000,-150.0,0.00037802,2]
[422174964,1778647842000,-1444.0,0.00037753,120]
[422174963,1778647842000,-508.0,0.00037694,15]
[422174958,1778647842000,-150.0,0.00037572,7]
[422174961,1778647842000,-1000.0,0.00037615,2]
[422174999,1778647842000,-500.0,0.00038356,2]
[422174960,1778647842000,-1000.0,0.00037615,2]
[422174956,1778647842000,-150.0,0.00037561,2]
[422174957,1778647842000,-274.0,0.00037561,2]
[422174955,1778647842000,-150.0,0.00037561,2]
[422174953,1778647842000,-150.0,0.00037561,2]
[422174954,1778647842000,-150.0,0.00037561,2]